fUSD/lending_fUSD_20240831
["ID","MTS","AMOUNT","RATE_DAILY","PERIOD"]
[336746682,1725096641919,-160.095168,0.00024973,2]
[336746684,1725096641928,-165.06209415,0.00024973,2]
[336746685,1725096641937,-160.095168,0.00024973,2]
[336746687,1725096641947,-160.095168,0.00024973,2]
[336746689,1725096641956,-200.11896,0.00024973,2]
[336746691,1725096641965,-160.095168,0.00024973,2]
[336746692,1725096641974,-160.095168,0.00024973,2]
[336746693,1725096641983,-160.095168,0.00024973,2]
[336746694,1725096641993,-300.17844,0.00024973,2]
[336746695,1725096642002,-160.095168,0.00024973,2]
[336746696,1725096642012,-158.0939784,0.00024973,2]
[336746697,1725096642021,-160.095168,0.00024973,2]
[336746698,1725096642030,-160.80489013,0.00024973,2]
[336746699,1725096642040,-160.095168,0.00024973,2]
[336746700,1725096642050,-160.095168,0.00024973,2]
[336746701,1725096642060,-160.095168,0.00024973,2]
[336746702,1725096642069,-158.5942758,0.00024973,2]
[336746703,1725096642080,-2500.0,0.00024989,5]
[336746704,1725096642090,-51600.0,0.0002499,14]
[336746705,1725096642100,-218.40329671,0.00024999,2]
[336746706,1725096642111,-246.47762006,0.00024999,2]
[336746707,1725096642121,-7805.1597434,0.00024999,2]
[336746708,1725096642131,-732.0,0.00024999,2]
[336746709,1725096642140,-245.8562322,0.00025,2]
[336746710,1725096642149,-238.11373932,0.00025,2]
[336746711,1725096642159,-3411400.39695164,0.00025,2]
[336746712,1725096642172,-164173.67981247,0.00025,2]
[336746713,1725096642184,-101960.1453816,0.00025,2]
[336746714,1725096642195,-149112.82229125,0.00025,2]
[336746715,1725096642206,-20067.7786587,0.00025,2]
[336746716,1725096642228,-813.78799327,0.00025,2]
[336746717,1725096642241,-9301.08284011,0.00025,2]
[336746718,1725096642252,-568.13080662,0.00025,2]
[336746722,1725096643253,-789.99,0.00025,2]
[336746723,1725096643264,-1858.93673647,0.00025,2]
[336746725,1725096643313,-334.74223888,0.00025,2]
[336746726,1725096643324,-2240.0,0.00025,2]
[336746727,1725096643334,-4063.59449961,0.00025,2]
[336746728,1725096643427,-7890.68705719,0.00025,2]
[336746729,1725096643438,-1535.85323252,0.00025,2]
[336746742,1725096644805,-935.21484251,0.00025,2]
[336746743,1725096644818,-466228.11947106,0.00025,2]
[336746744,1725096644829,-33499.91300064,0.00025,2]
[336746745,1725096644846,-8823.6328315,0.00025,2]
[336746746,1725096644857,-416.359999,0.00025,2]
[336746747,1725096644868,-607.00378439,0.00025,2]
[336746750,1725096646274,-930.0,0.00025,2]
[336746751,1725096646285,-15702.08710001,0.00025,2]
[336746752,1725096646334,-892.54323916,0.00025,2]
[336746753,1725096646345,-459.58986104,0.00025,2]
[336746754,1725096646395,-2414.68677028,0.00025,2]
[336746755,1725096646407,-4566.43182891,0.00025,2]
[336746756,1725096646418,-4998.0,0.00025,2]
[336746757,1725096646464,-2272.5,0.00025,2]
[336746758,1725096646476,-4904.9682,0.00025,2]
[336746759,1725096646525,-29822.85706353,0.00025,2]
[336746760,1725096646587,-510.59949077,0.00025,2]
[336746761,1725096646599,-1004.84499967,0.00025,2]
[336746762,1725096646612,-858.99079704,0.00025,2]
[336746763,1725096646624,-924.63651911,0.00025,2]
[336746764,1725096646636,-1882.07323999,0.00025,2]
[336746765,1725096646647,-5334.53403773,0.00025,2]
[336746766,1725096646659,-13959.16703489,0.00025,2]
[336746767,1725096646670,-542.79318473,0.00025,2]
[336746768,1725096646681,-607.97134023,0.00025,2]
[336746769,1725096646714,-1075.03659813,0.00025,2]
[336746779,1725096968141,155.2,0.00010959,2]
[336746780,1725097021517,-208.0,0.00026468,120]
[336746781,1725097021568,-320.0,0.00026899,120]
[336746782,1725097021625,-208.0,0.00029409,120]
[336746783,1725097021674,-320.0,0.00029589,120]
[336746784,1725097021748,-320.0,0.00032279,120]
[336746785,1725097021800,-208.0,0.00032349,120]
[336746786,1725097021854,-208.0,0.0003529,120]
[336746787,1725097021904,-2174.41,0.00035292,120]
[336746788,1725097021954,-200.0,0.00036663,120]
[336746789,1725097022003,-500.0,0.00038356,120]
[336746790,1725097022048,-500.0,0.00038356,120]
[336746791,1725097022094,-500.0,0.00038356,120]
[336746792,1725097022143,-500.0,0.00038356,120]
[336746793,1725097022193,-500.0,0.00038356,120]
[336746794,1725097022244,-500.0,0.00038356,120]
[336746795,1725097022294,-500.0,0.00038356,120]
[336746796,1725097022344,-241.37156035,0.00038356,120]
[336746797,1725097022399,-500.0,0.00038356,120]
[336746798,1725097022448,-294.98332274,0.00038356,120]
[336746799,1725097022493,-500.0,0.00038356,120]
[336746800,1725097022542,-500.0,0.00038356,120]
[336746801,1725097022594,-500.0,0.00038356,120]
[336746802,1725097022646,-500.0,0.00038356,120]
[336746803,1725097022694,-500.0,0.00038356,120]
[336746804,1725097022744,-500.0,0.00038356,120]
[336746805,1725097022795,-500.0,0.00038356,120]
[336746806,1725097022846,-500.0,0.00038356,120]
[336746807,1725097022899,-500.0,0.00038356,120]
[336746808,1725097022950,-500.0,0.00038356,120]
[336746809,1725097023000,-500.0,0.00038356,120]
[336746810,1725097023054,-522.72193147,0.00038356,120]
[336746811,1725097023109,-560.46,0.00038356,120]
[336746812,1725097023164,-500.0,0.00038356,120]
[336746813,1725097023220,-500.0,0.00038356,120]
[336746814,1725097023277,-500.0,0.00038356,120]
[336746815,1725097023335,-604.31331935,0.00038356,120]
[336746816,1725097023394,-500.0,0.00038356,120]
[336746817,1725097023449,-561.62,0.00038356,120]
[336746818,1725097023503,-500.0,0.00038356,120]
[336746819,1725097023556,-500.0,0.00038356,120]
[336746820,1725097023611,-500.0,0.00038356,120]
[336746821,1725097023663,-152.40584268,0.00038356,120]
[336746822,1725097023718,-500.0,0.00038356,120]
[336746823,1725097023771,-500.0,0.00038356,120]
[336746824,1725097023824,-500.0,0.00038356,120]
[336746825,1725097023875,-500.0,0.00038356,120]
[336746826,1725097023924,-500.0,0.00038356,120]
[336746827,1725097023975,-500.0,0.00038356,120]
[336746828,1725097024027,-500.0,0.00038356,120]
[336746829,1725097024081,-500.0,0.00038356,120]
[336746830,1725097024134,-500.0,0.00038356,120]
[336746831,1725097024185,-500.0,0.00038356,120]
[336746832,1725097024236,-500.0,0.00038356,120]
[336746833,1725097024287,-500.0,0.00038356,120]
[336746834,1725097024341,-500.0,0.00038356,120]
[336746835,1725097024397,-500.0,0.00038356,120]
[336746836,1725097024449,-500.0,0.00038356,120]
[336746837,1725097024503,-500.0,0.00038356,120]
[336746838,1725097024557,-946.93,0.00038356,120]
[336746839,1725097024613,-500.0,0.00038356,120]
[336746840,1725097024669,-500.0,0.00038356,120]
[336746841,1725097024725,-500.0,0.00038356,120]
[336746842,1725097024777,-590.31,0.00038356,120]
[336746843,1725097024832,-500.0,0.00038356,120]
[336746844,1725097024888,-500.0,0.00038356,120]
[336746845,1725097024941,-500.0,0.00038356,120]
[336746846,1725097024993,-407.75208933,0.00038356,120]
[336746847,1725097025048,-500.0,0.00038356,120]
[336746848,1725097025103,-500.0,0.00038356,120]
[336746849,1725097025161,-725.19,0.00038356,120]
[336746850,1725097025215,-532.94,0.00038356,120]
[336746851,1725097025270,-500.0,0.00038356,120]
[336746852,1725097025323,-500.0,0.00038356,120]
[336746853,1725097025376,-500.0,0.00038356,120]
[336746854,1725097025433,-500.0,0.00038356,120]
[336746855,1725097025488,-500.0,0.00038356,120]
[336746856,1725097025542,-500.0,0.00038356,120]
[336746857,1725097025597,-500.0,0.00038356,120]
[336746858,1725097025652,-500.0,0.00038356,120]
[336746859,1725097025849,-500.0,0.00038356,120]
[336746860,1725097025906,-500.0,0.00038356,120]
[336746861,1725097025961,-500.0,0.00038356,120]
[336746862,1725097026017,-500.0,0.00038356,120]
[336746863,1725097026072,-500.0,0.00038356,120]
[336746864,1725097026125,-835.6,0.00038356,120]
[336746865,1725097026176,-500.0,0.00038356,120]
[336746866,1725097026228,-500.0,0.00038356,120]
[336746867,1725097026279,-500.0,0.00038356,120]
[336746868,1725097026330,-500.0,0.00038356,120]
[336746869,1725097026380,-500.0,0.00038356,120]
[336746870,1725097026433,-500.0,0.00038356,120]
[336746871,1725097026486,-1002.35,0.00038356,120]
[336746872,1725097026538,-500.0,0.00038356,120]
[336746873,1725097026592,-500.0,0.00038356,120]
[336746874,1725097026645,-500.0,0.00038356,120]
[336746875,1725097026697,-500.0,0.00038356,120]
[336746876,1725097026751,-500.0,0.00038356,120]
[336746877,1725097026804,-500.0,0.00038356,120]
[336746878,1725097026855,-500.0,0.00038356,120]
[336746879,1725097026908,-500.0,0.00038356,120]
[336746880,1725097026960,-500.0,0.00038356,120]
[336746881,1725097027012,-500.0,0.00038356,120]
[336746882,1725097027063,-500.0,0.00038356,120]
[336746883,1725097027115,-500.0,0.00038356,120]
[336746884,1725097027167,-748.87,0.00038356,120]
[336746885,1725097027217,-500.0,0.00038356,120]
[336746886,1725097027268,-500.0,0.00038356,120]
[336746887,1725097027320,-500.0,0.00038356,120]
[336746888,1725097027370,-500.0,0.00038356,120]
[336746889,1725097027419,-704.37,0.00038356,120]
[336746890,1725097027466,-500.0,0.00038356,120]
[336746891,1725097027513,-609.74189359,0.00038356,120]
[336746892,1725097027561,-500.0,0.00038356,120]
[336746893,1725097027611,-500.0,0.00038356,120]
[336746894,1725097027662,-507.42391549,0.00038356,120]
[336746895,1725097027713,-500.0,0.00038356,120]
[336746896,1725097027763,-500.0,0.00038356,120]
[336746897,1725097027811,-500.0,0.00038356,120]
[336746898,1725097027864,-960.35,0.00038356,120]
[336746899,1725097027921,-500.0,0.00038356,120]
[336746900,1725097027972,-500.0,0.00038356,120]
[336746901,1725097028023,-500.0,0.00038356,120]
[336746902,1725097028075,-743.26,0.00038356,120]
[336746903,1725097028124,-500.0,0.00038356,120]
[336746904,1725097028173,-500.0,0.00038356,120]
[336746905,1725097028220,-500.0,0.00038356,120]
[336746906,1725097028270,-723.59,0.00038356,120]
[336746907,1725097028316,-500.0,0.00038356,120]
[336746908,1725097028361,-1975.9,0.00038356,120]
[336746909,1725097028407,-937.79,0.00038356,120]
[336746910,1725097028453,-500.0,0.00038356,120]
[336746911,1725097028498,-500.0,0.00038356,120]
[336746912,1725097028546,-500.0,0.00038356,120]
[336746913,1725097028592,-500.0,0.00038356,120]
[336746914,1725097028638,-957.01,0.00038356,120]
[336746915,1725097028684,-500.0,0.00038356,120]
[336746916,1725097028732,-510.59,0.00038356,120]
[336746917,1725097028782,-500.0,0.00038356,120]
[336746918,1725097028829,-500.0,0.00038356,120]
[336746919,1725097028876,-198.27112839,0.00038356,120]
[336746920,1725097028922,-621.5,0.00038356,120]
[336746921,1725097028968,-500.0,0.00038356,120]
[336746922,1725097029014,-500.0,0.00038356,120]
[336746923,1725097029062,-500.0,0.00038356,120]
[336746924,1725097029110,-507.58854182,0.00038356,120]
[336746925,1725097029159,-500.0,0.00038356,120]
[336746926,1725097029208,-500.0,0.00038356,120]
[336746927,1725097029255,-700.84,0.00038356,120]
[336746928,1725097029314,-500.0,0.00038356,120]
[336746929,1725097029361,-500.0,0.00038356,120]
[336746930,1725097029406,-581.7,0.00038356,120]
[336746931,1725097029450,-500.0,0.00038356,120]
[336746932,1725097029493,-473.71595344,0.00038356,120]
[336746933,1725097029539,-500.0,0.00038356,120]
[336746934,1725097029583,-500.0,0.00038356,120]
[336746935,1725097029630,-500.0,0.00038356,120]
[336746936,1725097029678,-500.0,0.00038356,120]
[336746937,1725097029726,-500.0,0.00038356,120]
[336746938,1725097029774,-642.41,0.00038356,120]
[336746939,1725097029822,-500.0,0.00038356,120]
[336746940,1725097029870,-500.0,0.00038356,120]
[336746941,1725097029920,-500.0,0.00038356,120]
[336746942,1725097029969,-500.0,0.00038356,120]
[336746943,1725097030024,-485.11807575,0.00038356,120]
[336746944,1725097030077,-500.0,0.00038356,120]
[336746945,1725097030128,-500.0,0.00038356,120]
[336746946,1725097030176,-500.0,0.00038356,120]
[336746947,1725097030221,-500.0,0.00038356,120]
[336746948,1725097030520,-500.0,0.00038356,120]
[336746949,1725097030573,-333.42163508,0.00038356,120]
[336746950,1725097030624,-500.0,0.00038356,120]
[336746951,1725097030674,-500.0,0.00038356,120]
[336746952,1725097030720,-500.0,0.00038356,120]
[336746953,1725097030767,-500.0,0.00038356,120]
[336746954,1725097030810,-500.0,0.00038356,120]
[336746955,1725097030854,-1149.09,0.00038356,120]
[336746956,1725097030902,-500.0,0.00038356,120]
[336746957,1725097030950,-500.0,0.00038356,120]
[336746958,1725097031000,-583.56,0.00038356,120]
[336746959,1725097031049,-500.0,0.00038356,120]
[336746960,1725097031100,-500.0,0.00038356,120]
[336746961,1725097031153,-500.0,0.00038356,120]
[336746962,1725097031201,-703.88,0.00038356,120]
[336746963,1725097031247,-500.0,0.00038356,120]
[336746964,1725097031293,-575.9,0.00038356,120]
[336746965,1725097031339,-500.0,0.00038356,120]
[336746966,1725097031384,-500.0,0.00038356,120]
[336746967,1725097031431,-500.0,0.00038356,120]
[336746968,1725097031474,-692.08,0.00038356,120]
[336746969,1725097031519,-500.0,0.00038356,120]
[336746970,1725097031566,-709.25,0.00038356,120]
[336746971,1725097031609,-500.0,0.00038356,120]
[336746972,1725097031654,-500.0,0.00038356,120]
[336746973,1725097031696,-500.0,0.00038356,120]
[336746974,1725097031742,-500.0,0.00038356,120]
[336746975,1725097031788,-500.0,0.00038356,120]
[336746976,1725097031833,-308.28919689,0.00038356,120]
[336746977,1725097031882,-908.27,0.00038356,120]
[336746978,1725097031928,-744.36,0.00038356,120]
[336746979,1725097031976,-500.0,0.00038356,120]
[336746980,1725097032026,-500.0,0.00038356,120]
[336746981,1725097032078,-500.0,0.00038356,120]
[336746982,1725097032127,-1042.45,0.00038356,120]
[336746983,1725097032177,-559.78,0.00038356,120]
[336746984,1725097032226,-500.0,0.00038356,120]
[336746985,1725097032276,-500.0,0.00038356,120]
[336746986,1725097032326,-500.0,0.00038356,120]
[336746987,1725097032376,-532.51,0.00038356,120]
[336746988,1725097032429,-500.0,0.00038356,120]
[336746989,1725097032484,-500.0,0.00038356,120]
[336746990,1725097032536,-500.0,0.00038356,120]
[336746991,1725097032584,-500.0,0.00038356,120]
[336746992,1725097032629,-500.0,0.00038356,120]
[336746993,1725097032674,-5894.48,0.00038356,120]
[336746994,1725097032719,-999.03,0.00038356,120]
[336746995,1725097032764,-500.0,0.00038356,120]
[336746996,1725097032808,-500.0,0.00038356,120]
[336746997,1725097032852,-500.0,0.00038356,120]
[336746998,1725097032897,-500.0,0.00038356,120]
[336746999,1725097032943,-500.0,0.00038356,120]
[336747000,1725097032987,-959.15,0.00038356,120]
[336747001,1725097033032,-500.0,0.00038356,120]
[336747002,1725097033078,-500.0,0.00038356,120]
[336747003,1725097033126,-500.0,0.00038356,120]
[336747004,1725097033176,-500.0,0.00038356,120]
[336747005,1725097033226,-500.0,0.00038356,120]
[336747006,1725097033278,-500.0,0.00038356,120]
[336747007,1725097033329,-500.0,0.00038356,120]
[336747008,1725097033384,-773.73,0.00038356,120]
[336747009,1725097033434,-500.0,0.00038356,120]
[336747010,1725097033482,-576.08,0.00038356,120]
[336747011,1725097033535,-4941.98,0.00038356,120]
[336747012,1725097033586,-500.0,0.00038356,120]
[336747013,1725097033636,-1002.27,0.00038356,120]
[336747014,1725097033690,-527.82,0.00038356,120]
[336747015,1725097033741,-500.0,0.00038356,120]
[336747016,1725097033795,-500.0,0.00038356,120]
[336747017,1725097033848,-560.67,0.00038356,120]
[336747018,1725097033899,-500.0,0.00038356,120]
[336747019,1725097033949,-951.43,0.00038356,120]
[336747020,1725097034044,-600.87,0.00038356,120]
[336747021,1725097034095,-2172.73,0.00038356,120]
[336747022,1725097034149,-500.0,0.00038356,120]
[336747023,1725097034202,-500.0,0.00038356,120]
[336747024,1725097034252,-651.36,0.00038356,120]
[336747025,1725097034302,-500.0,0.00038356,120]
[336747026,1725097034356,-500.0,0.00038356,120]
[336747027,1725097034406,-616.15,0.00038356,120]
[336747028,1725097034455,-500.0,0.00038356,120]
[336747029,1725097034501,-500.0,0.00038356,120]
[336747030,1725097034550,-1919.32,0.00038356,120]
[336747031,1725097034603,-641.39,0.00038356,120]
[336747032,1725097034657,-500.0,0.00038356,120]
[336747033,1725097034709,-500.0,0.00038356,120]
[336747034,1725097034762,-500.0,0.00038356,120]
[336747035,1725097034815,-500.0,0.00038356,120]
[336747036,1725097034869,-705.93,0.00038356,120]
[336747037,1725097034919,-2887.57,0.00038356,120]
[336747038,1725097034967,-500.0,0.00038356,120]
[336747039,1725097035016,-563.2,0.00038356,120]
[336747040,1725097035064,-546.79,0.00038356,120]
[336747041,1725097035111,-5244.54,0.00038356,120]
[336747042,1725097035165,-1196.9,0.00038356,120]
[336747043,1725097035213,-500.0,0.00038356,120]
[336747044,1725097035262,-954.53,0.00038356,120]
[336747045,1725097035312,-509.91,0.00038356,120]
[336747046,1725097035359,-754.96,0.00038356,120]
[336747047,1725097035409,-534.73,0.00038356,120]
[336747048,1725097035460,-500.0,0.00038356,120]
[336747049,1725097035511,-500.0,0.00038356,120]
[336747050,1725097035562,-500.0,0.00038356,120]
[336747051,1725097035611,-1291.66,0.00038356,120]
[336747052,1725097035659,-500.0,0.00038356,120]
[336747053,1725097035705,-1172.65,0.00038356,120]
[336747054,1725097035755,-771.32,0.00038356,120]
[336747055,1725097035802,-500.0,0.00038356,120]
[336747056,1725097035849,-500.0,0.00038356,120]
[336747057,1725097035894,-500.0,0.00038356,120]
[336747058,1725097035940,-1861.26,0.00038356,120]
[336747059,1725097035987,-500.0,0.00038356,120]
[336747060,1725097036036,-1885.7,0.00038356,120]
[336747061,1725097036084,-662.9,0.00038356,120]
[336747062,1725097036133,-500.0,0.00038356,120]
[336747063,1725097036182,-785.17,0.00038356,120]
[336747064,1725097036232,-500.0,0.00038356,120]
[336747065,1725097036281,-1251.52,0.00038356,120]
[336747066,1725097036328,-758.26,0.00038356,120]
[336747067,1725097036377,-963.03,0.00038356,120]
[336747068,1725097036423,-1436.3,0.00038356,120]
[336747069,1725097036475,-827.96,0.00038356,120]
[336747070,1725097036527,-500.0,0.00038356,120]
[336747071,1725097036577,-500.0,0.00038356,120]
[336747072,1725097036631,-818.6,0.00038356,120]
[336747073,1725097036683,-500.0,0.00038356,120]
[336747074,1725097036736,-545.12,0.00038356,120]
[336747075,1725097036786,-700.92,0.00038356,120]
[336747076,1725097036835,-500.0,0.00038356,120]
[336747077,1725097036885,-642.58,0.00038356,120]
[336747078,1725097036934,-970.93,0.00038356,120]
[336747079,1725097036982,-1182.65,0.00038356,120]
[336747080,1725097037029,-500.0,0.00038356,120]
[336747081,1725097037081,-500.0,0.00038356,120]
[336747082,1725097037134,-537.82,0.00038356,120]
[336747083,1725097037186,-1318.5,0.00038356,120]
[336747084,1725097037238,-500.0,0.00038356,120]
[336747085,1725097037292,-3016.08,0.00038356,120]
[336747086,1725097037344,-1476.17,0.00038356,120]
[336747087,1725097037396,-831.76,0.00038356,120]
[336747088,1725097037451,-983.21,0.00038356,120]
[336747089,1725097037502,-885.33,0.00038356,120]
[336747090,1725097037553,-2660.4,0.00038356,120]
[336747091,1725097037602,-500.0,0.00038356,120]
[336747092,1725097037653,-638.33,0.00038356,120]
[336747093,1725097037701,-755.01,0.00038356,120]
[336747094,1725097037749,-604.41,0.00038356,120]
[336747095,1725097037795,-500.0,0.00038356,120]
[336747096,1725097037842,-4191.91,0.00038356,120]
[336747097,1725097037887,-3168.28,0.00038356,120]
[336747098,1725097037928,-500.0,0.00038356,120]
[336747099,1725097037973,-599.15,0.00038356,120]
[336747100,1725097038020,-500.0,0.00038356,120]
[336747101,1725097038066,-500.0,0.00038356,120]
[336747102,1725097038113,-665.66,0.00038356,120]
[336747103,1725097038162,-1523.88,0.00038356,120]
[336747104,1725097038211,-500.0,0.00038356,120]
[336747105,1725097038258,-500.0,0.00038356,120]
[336747106,1725097038306,-618.99,0.00038356,120]
[336747107,1725097038352,-877.0,0.00038356,120]
[336747108,1725097038404,-500.0,0.00038904,120]
[336747109,1725097038453,-500.0,0.00038904,120]
[336747110,1725097038500,-500.0,0.00038904,120]
[336747111,1725097038546,-500.0,0.00038904,120]
[336747112,1725097038593,-523.72153129,0.00038904,120]
[336747113,1725097038648,-295.11992684,0.00038904,120]
[336747114,1725097038696,-500.0,0.00038904,120]
[336747115,1725097038746,-500.0,0.00038904,120]
[336747116,1725097038794,-500.0,0.00038904,120]
[336747117,1725097038840,-500.0,0.00038904,120]
[336747118,1725097038888,-500.0,0.00038904,120]
[336747119,1725097038937,-500.0,0.00038904,120]
[336747120,1725097038986,-500.0,0.00038904,120]
[336747121,1725097039035,-500.0,0.00038904,120]
[336747122,1725097039086,-500.0,0.00038904,120]
[336747123,1725097039138,-500.0,0.00038904,120]
[336747124,1725097039191,-500.0,0.00038904,120]
[336747125,1725097039377,-500.0,0.00038904,120]
[336747126,1725097039426,-615.95390853,0.00038904,120]
[336747127,1725097039474,-560.46,0.00038904,120]
[336747128,1725097039522,-305.6371457,0.00038904,120]
[336747129,1725097039571,-500.0,0.00038904,120]
[336747130,1725097039620,-500.0,0.00038904,120]
[336747131,1725097039671,-500.0,0.00038904,120]
[336747132,1725097039719,-561.62,0.00038904,120]
[336747133,1725097039769,-472.01910932,0.00038904,120]
[336747134,1725097039817,-500.0,0.00038904,120]
[336747135,1725097039865,-500.0,0.00038904,120]
[336747136,1725097039915,-500.0,0.00038904,120]
[336747137,1725097039962,-500.0,0.00038904,120]
[336747138,1725097040011,-500.0,0.00038904,120]
[336747139,1725097040061,-500.0,0.00038904,120]
[336747140,1725097040114,-500.0,0.00038904,120]
[336747141,1725097040164,-500.0,0.00038904,120]
[336747142,1725097040211,-500.0,0.00038904,120]
[336747143,1725097040259,-500.0,0.00038904,120]
[336747144,1725097040304,-500.0,0.00038904,120]
[336747145,1725097040349,-500.0,0.00038904,120]
[336747146,1725097040391,-500.0,0.00038904,120]
[336747147,1725097040436,-500.0,0.00038904,120]
[336747148,1725097040479,-500.0,0.00038904,120]
[336747149,1725097040524,-465.03147162,0.00038904,120]
[336747150,1725097040568,-500.0,0.00038904,120]
[336747151,1725097040615,-500.0,0.00038904,120]
[336747152,1725097040661,-946.93,0.00038904,120]
[336747153,1725097040706,-500.0,0.00038904,120]
[336747154,1725097040750,-500.0,0.00038904,120]
[336747155,1725097040791,-500.0,0.00038904,120]
[336747156,1725097040836,-590.31,0.00038904,120]
[336747157,1725097040880,-500.0,0.00038904,120]
[336747158,1725097040925,-500.0,0.00038904,120]
[336747159,1725097040971,-500.0,0.00038904,120]
[336747160,1725097041017,-500.0,0.00038904,120]
[336747161,1725097041063,-500.0,0.00038904,120]
[336747162,1725097041107,-725.19,0.00038904,120]
[336747163,1725097041154,-532.94,0.00038904,120]
[336747164,1725097041201,-500.0,0.00038904,120]
[336747165,1725097041247,-500.0,0.00038904,120]
[336747166,1725097041293,-500.0,0.00038904,120]
[336747167,1725097041339,-500.0,0.00038904,120]
[336747168,1725097041385,-500.0,0.00038904,120]
[336747169,1725097041433,-500.0,0.00038904,120]
[336747170,1725097041480,-500.0,0.00038904,120]
[336747171,1725097041526,-176.56271164,0.00038904,120]
[336747172,1725097041574,-500.0,0.00038904,120]
[336747173,1725097041620,-500.0,0.00038904,120]
[336747174,1725097041665,-500.0,0.00038904,120]
[336747175,1725097041709,-500.0,0.00038904,120]
[336747176,1725097041753,-500.0,0.00038904,120]
[336747177,1725097041796,-835.6,0.00038904,120]
[336747178,1725097041840,-500.0,0.00038904,120]
[336747179,1725097041885,-500.0,0.00038904,120]
[336747180,1725097041932,-500.0,0.00038904,120]
[336747181,1725097041979,-500.0,0.00038904,120]
[336747182,1725097042028,-500.0,0.00038904,120]
[336747183,1725097042079,-500.0,0.00038904,120]
[336747184,1725097042131,-1002.35,0.00038904,120]
[336747185,1725097042183,-500.0,0.00038904,120]
[336747186,1725097042235,-500.0,0.00038904,120]
[336747187,1725097042289,-500.0,0.00038904,120]
[336747188,1725097042344,-500.0,0.00038904,120]
[336747189,1725097042398,-501.85362507,0.00038904,120]
[336747190,1725097042454,-500.0,0.00038904,120]
[336747191,1725097042505,-500.0,0.00038904,120]
[336747192,1725097042557,-500.0,0.00038904,120]
[336747193,1725097042609,-436.23452426,0.00038904,120]
[336747194,1725097042661,-500.0,0.00038904,120]
[336747195,1725097042712,-570.4867294,0.00038904,120]
[336747196,1725097042762,-500.0,0.00038904,120]
[336747197,1725097042810,-748.87,0.00038904,120]
[336747198,1725097042856,-500.0,0.00038904,120]
[336747199,1725097042903,-273.76168294,0.00038904,120]
[336747200,1725097042947,-500.0,0.00038904,120]
[336747201,1725097042992,-500.0,0.00038904,120]
[336747202,1725097043037,-704.37,0.00038904,120]
[336747203,1725097043083,-500.0,0.00038904,120]
[336747204,1725097043128,-500.0,0.00038904,120]
[336747205,1725097043171,-500.0,0.00038904,120]
[336747206,1725097043214,-500.0,0.00038904,120]
[336747207,1725097043258,-500.0,0.00038904,120]
[336747208,1725097043299,-500.0,0.00038904,120]
[336747209,1725097043342,-960.35,0.00038904,120]
[336747210,1725097043383,-500.0,0.00038904,120]
[336747211,1725097043425,-508.26,0.00038904,120]
[336747212,1725097043466,-500.0,0.00038904,120]